bitfinex-derivatives/quotes_ETHF0:USTF0_20230402
["timestamp","ask_amount","ask_price","bid_price","bid_amount"]
[1680446027840,0.57668767,1816.7,1816.6,0.57633042]
[1680446028647,0.57668767,1816.7,1816.6,1.44122889]
[1680446030239,0.57668767,1816.7,1816.6,1.44118564]
[1680446030443,0.57668767,1816.7,1816.6,0.86489847]
[1680446031740,1.44170657,1816.8,1816.6,0.86489847]
[1680446031945,1.44170657,1816.8,1816.6,1.44117123]
[1680446031946,0.57668767,1816.7,1816.6,1.44117123]
[1680446032347,0.57668767,1816.7,1816.6,0.86489847]
[1680446032946,0.57668767,1816.7,1816.6,0.5762676]
[1680446033347,0.57668767,1816.7,1816.6,1.8278635]
[1680446035953,0.57668767,1816.7,1816.6,0.96296503]
[1680446037347,1.44170657,1816.8,1816.6,1.2515959]
[1680446037548,0.57668767,1816.8,1816.7,4.07269847]
[1680446037749,0.57668767,1816.9,1816.7,4.07269847]
[1680446038045,0.57668767,1816.9,1816.8,0.57610001]
[1680446038248,0.57668767,1816.9,1816.8,1.57610001]
[1680446038551,0.57668767,1816.9,1816.8,0.57610001]
[1680446043357,0.57668767,1816.9,1816.8,1.11030274]
[1680446045964,0.57668767,1816.9,1816.8,0.53420273]
[1680446045965,1.44170657,1816.9,1816.8,0.53420273]
[1680446046265,0.57668767,1816.9,1816.8,1.11030274]
[1680446046960,1.44170657,1816.9,1816.8,1.11030274]
[1680446047159,0.57668767,1816.9,1816.8,1.11030274]
[1680446049760,0.57868767,1817.0,1816.8,1.3991012]
[1680446049965,0.57868767,1817.0,1816.9,0.57607206]
[1680446052165,0.57868767,1817.0,1816.9,3.78387206]
[1680446053164,0.57868767,1817.0,1816.9,0.57607206]
[1680446055353,0.57868767,1817.0,1816.9,3.78387206]
[1680446055561,0.57868767,1817.0,1816.9,0.57607206]
[1680446056770,0.8670189,1817.0,1816.8,1.11027479]
[1680446056966,0.57652862,1816.9,1816.8,1.11027479]
[1680446057279,1.57652862,1816.9,1816.8,1.11027479]
[1680446057466,0.57652862,1816.9,1816.8,1.11027479]
[1680446061364,1.44154752,1816.9,1816.8,1.11027479]
[1680446061566,0.57652862,1816.9,1816.8,1.11027479]
[1680446063577,1.44154752,1816.9,1816.8,1.11027479]
[1680446063774,0.8650189,1816.9,1816.8,1.11027479]
[1680446064075,2.15335853,1816.9,1816.8,0.53420273]
[1680446064376,5.36115853,1816.9,1816.8,0.3387954]
[1680446064875,1.0,1816.8,1816.7,0.57607206]
[1680446065172,1.86518365,1816.8,1816.7,0.57607206]
[1680446065376,1.86518365,1816.8,1816.7,0.91514511]
[1680446066478,0.57679726,1816.9,1816.7,4.41177152]
[1680446066676,0.57679726,1816.9,1816.8,0.86489847]
[1680446070381,1.44198091,1816.9,1816.8,0.86489847]
[1680446071483,0.57679726,1816.9,1816.8,0.86489847]
[1680446071875,1.44198091,1816.9,1816.8,0.86489847]
[1680446072383,0.57679726,1816.9,1816.8,0.86489847]
[1680446072884,1.44198091,1816.9,1816.8,0.86489847]
[1680446073079,0.86518365,1816.9,1816.8,0.5764674]
[1680446073278,0.86518365,1816.9,1816.8,1.06074056]
[1680446074485,2.15535853,1817.0,1816.8,1.06074056]
[1680446074983,0.86553383,1816.9,1816.8,1.06074056]
[1680446075686,2.15535853,1817.0,1816.8,1.06074056]
[1680446076185,1.15335853,1816.9,1816.8,1.06074056]
[1680446076384,2.15535853,1817.0,1816.8,1.06074056]
[1680446076778,0.86559279,1816.9,1816.8,1.06074056]
[1680446077175,2.15535853,1817.0,1816.8,1.06074056]
[1680446077386,1.15335853,1816.9,1816.8,1.06074056]
[1680446078181,2.15535853,1817.0,1816.8,1.06074056]
[1680446078381,1.15335853,1816.9,1816.8,1.06074056]
[1680446078582,1.0,1816.8,1816.6,0.5764674]
[1680446078785,2.15433743,1816.7,1816.6,0.5764674]
[1680446079086,5.36213743,1816.7,1816.6,0.5764674]
[1680446079796,1.0,1816.6,1816.5,1.44136587]
[1680446079990,1.86551238,1816.6,1816.5,1.44136587]
[1680446081599,1.5768745,1816.6,1816.5,0.5764674]
[1680446082096,2.44238688,1816.6,1816.5,0.5764674]
[1680446082496,1.86551238,1816.6,1816.5,0.5764674]
[1680446082687,2.44238963,1816.6,1816.5,0.5764674]
[1680446083591,1.57687725,1816.6,1816.5,0.5764674]
[1680446084294,1.86551238,1816.6,1816.4,0.5764674]
[1680446084489,0.5767731,1816.5,1816.4,0.5764674]
[1680446086287,0.5767731,1816.5,1816.4,0.79427005]
[1680446088194,0.5767731,1816.5,1816.4,0.21780265]
[1680446088502,0.5767731,1816.5,1816.4,0.5764674]
[1680446088704,0.5767731,1816.5,1816.3,1.44136587]
[1680446089499,0.5767731,1816.5,1816.3,0.5764674]
[1680446091696,2.44228548,1816.6,1816.3,0.5764674]
[1680446091898,1.5767731,1816.6,1816.3,0.5764674]
[1680446092095,1.5767731,1816.6,1816.3,3.7842674]
[1680446092096,0.5767731,1816.6,1816.3,3.7842674]
[1680446092794,1.44228548,1816.6,1816.3,0.5764674]
[1680446093094,0.5767731,1816.6,1816.3,0.5764674]
[1680446093399,1.44228548,1816.6,1816.3,0.5764674]
[1680446093599,0.5767731,1816.6,1816.3,0.5764674]
[1680446096492,0.5767731,1816.6,1816.3,3.7842674]
[1680446100498,1.44228548,1816.6,1816.3,3.7842674]
[1680446100698,0.5767731,1816.5,1816.3,0.5764674]
[1680446102502,0.5767731,1816.6,1816.3,4.64916587]
[1680446102804,0.5767731,1816.6,1816.3,3.7842674]
[1680446103201,0.5767731,1816.6,1816.3,1.44136587]
[1680446103405,0.5767731,1816.6,1816.3,3.7842674]
[1680446103598,0.5767731,1816.6,1816.3,0.5764674]
[1680446103999,0.5767731,1816.6,1816.3,3.7842674]
[1680446104599,0.5767731,1816.6,1816.3,4.64916587]
[1680446105998,0.5767731,1816.6,1816.4,0.5764674]
[1680446108396,1.44228548,1816.6,1816.3,0.5764674]
[1680446108600,0.5767731,1816.5,1816.3,0.5764674]
[1680446110102,1.5767731,1816.5,1816.3,0.5764674]
[1680446111505,0.5767731,1816.5,1816.3,0.5764674]
[1680446114616,0.5767731,1816.5,1816.4,0.5764674]
[1680446114813,0.5767731,1816.5,1816.3,1.44136587]
[1680446116821,0.5767731,1816.5,1816.4,0.5764674]
[1680446117625,1.44228548,1816.5,1816.4,0.5764674]
[1680446118823,0.86551238,1816.5,1816.4,0.5764674]
[1680446119120,1.86551238,1816.5,1816.4,0.5764674]
[1680446121122,1.86551238,1816.5,1816.4,0.80169572]
[1680446123824,2.15433743,1816.5,1816.4,1.09012679]
[1680446128826,1.15433743,1816.5,1816.4,1.09012679]
[1680446129426,0.86648002,1816.5,1816.4,1.37961246]
[1680446129624,1.15433743,1816.6,1816.4,1.37961246]
[1680446129824,1.15433743,1816.6,1816.5,0.86576787]
[1680446130019,1.76953009,1816.7,1816.5,0.86576787]
[1680446130227,1.44292179,1816.7,1816.5,1.44294557]
[1680446130423,1.76961643,1816.7,1816.6,0.22525169]
[1680446130735,1.76961643,1816.7,1816.6,0.80242939]
[1680446130921,14.98017989,1816.7,1816.6,0.22525169]
[1680446131525,13.5372581,1816.7,1816.6,0.22525169]
[1680446132928,14.98163447,1816.7,1816.6,0.22525169]
[1680446133330,14.98164779,1816.7,1816.6,0.22525169]
[1680446133531,14.98165568,1816.7,1816.6,0.80242939]
[1680446133933,14.98165568,1816.7,1816.6,0.22525169]
[1680446134332,14.98165568,1816.7,1816.6,0.80242939]
[1680446134737,14.98165568,1816.7,1816.6,0.22525169]
[1680446135834,13.5372581,1816.7,1816.6,0.22525169]
[1680446136032,14.98164391,1816.7,1816.6,0.80242939]
[1680446136332,14.98164391,1816.7,1816.6,0.22525169]
[1680446136537,13.5372581,1816.7,1816.6,0.22525169]
[1680446136737,14.9816384,1816.7,1816.6,0.22525169]
[1680446136934,13.5372581,1816.7,1816.6,0.22525169]
[1680446137536,14.98164047,1816.7,1816.6,0.22525169]
[1680446137833,13.5372581,1816.7,1816.6,0.22525169]
[1680446138340,14.98164713,1816.7,1816.6,0.22525169]
[1680446138537,14.98164713,1816.7,1816.6,0.80242939]
[1680446139234,14.98164713,1816.7,1816.6,0.22525169]
[1680446139435,14.98164713,1816.7,1816.6,0.80242939]
[1680446139635,13.5372581,1816.7,1816.6,0.22525169]
[1680446140840,14.98164614,1816.7,1816.6,0.22525169]
[1680446141040,14.98164614,1816.7,1816.6,0.80242939]
[1680446141242,13.5372581,1816.7,1816.6,0.22525169]
[1680446142444,14.98164783,1816.7,1816.6,0.22525169]
[1680446143236,13.5372581,1816.7,1816.6,0.22525169]
[1680446145550,13.5372581,1816.7,1816.6,0.22219284]
[1680446147549,1.0,1816.6,1816.5,0.5771777]
[1680446147744,5.65220642,1816.6,1816.5,0.80209125]
[1680446149545,5.65220642,1816.6,1816.5,1.66785912]
[1680446150450,5.65420642,1816.6,1816.5,1.66785912]
[1680446150959,5.65420642,1816.6,1816.5,0.80209125]
[1680446151251,5.65420642,1816.6,1816.5,1.66785912]
[1680446151451,5.65420642,1816.6,1816.5,0.80209125]
[1680446151752,5.65420642,1816.6,1816.5,1.66785912]
[1680446152054,5.65420642,1816.6,1816.5,1.44294557]
[1680446152555,5.65420642,1816.6,1816.5,1.66787113]
[1680446153057,5.65420642,1816.6,1816.5,1.44294557]
[1680446153557,5.65420642,1816.6,1816.5,1.66787371]
[1680446154060,5.65420642,1816.6,1816.5,1.44294557]
[1680446154558,5.65420642,1816.6,1816.5,1.66787633]
[1680446155053,5.65420642,1816.6,1816.5,1.44294557]
[1680446155658,5.65420642,1816.6,1816.5,0.80211083]
[1680446155951,5.65420642,1816.6,1816.5,0.5771777]
[1680446156357,5.65420642,1816.6,1816.5,0.80211277]
[1680446156857,5.65420642,1816.6,1816.5,0.5771777]
[1680446157260,5.65420642,1816.6,1816.5,0.80211533]
[1680446157461,4.53648121,1816.6,1816.5,0.80211533]
[1680446157663,17.74801607,1816.6,1816.4,1.44294557]
[1680446157862,2.44467178,1816.5,1816.4,1.44294557]
[1680446158062,2.44467178,1816.5,1816.4,0.86576787]
[1680446158562,1.0,1816.5,1816.4,0.94366091]
[1680446158759,2.44467178,1816.5,1816.4,0.94366091]
[1680446159063,1.0,1816.5,1816.4,0.94366091]
[1680446159459,2.15559326,1816.5,1816.4,0.94366091]
[1680446159657,1.0,1816.5,1816.4,0.94366091]
[1680446160562,2.44467178,1816.5,1816.4,0.65509409]
[1680446160762,2.44467178,1816.5,1816.4,0.94366091]
[1680446160763,1.0,1816.5,1816.4,0.94366091]
[1680446160962,1.0,1816.5,1816.4,1.52085754]
[1680446161164,1.0,1816.5,1816.4,0.94366091]
[1680446161359,1.0,1816.5,1816.4,1.44295714]
[1680446161563,1.0,1816.5,1816.4,1.52249616]
[1680446161971,1.0,1816.5,1816.4,0.94531325]
[1680446162264,1.0,1816.5,1816.4,0.86576787]
[1680446162769,1.0,1816.5,1816.4,1.44293229]
[1680446162967,2.44467178,1816.5,1816.4,0.57716442]
[1680446163173,2.44467178,1816.5,1816.4,1.52238944]
[1680446163371,2.44467178,1816.5,1816.4,0.65662157]
[1680446163670,1.0,1816.5,1816.4,0.65662157]
[1680446164059,2.44467178,1816.5,1816.4,0.65662157]
[1680446164471,1.0,1816.5,1816.4,0.65662157]
[1680446164671,2.44467178,1816.5,1816.4,0.65662157]
[1680446164872,2.7712412,1816.5,1816.4,0.57716442]
[1680446165268,16.05136991,1816.5,1816.3,1.44293229]
[1680446165573,3.2078,1816.4,1816.3,1.44293229]
[1680446165768,4.36330401,1816.4,1816.3,0.57716442]
[1680446168363,4.42579037,1816.4,1816.3,0.57716442]
[1680446170769,0.06248636,1816.4,1816.3,1.44293229]
[1680446170971,0.92851539,1816.4,1816.3,0.86576787]
[1680446171172,0.86602903,1816.4,1816.3,0.95459333]
[1680446171475,0.86602903,1816.4,1816.3,1.53134857]
[1680446171665,0.86602903,1816.4,1816.3,1.53135014]
[1680446171874,1.15550401,1816.5,1816.3,4.16239333]
[1680446172174,1.15750401,1816.6,1816.4,1.44243005]
[1680446172384,1.15750401,1816.6,1816.5,0.57664602]
[1680446180075,1.15550401,1816.6,1816.5,0.57664602]
[1680446182378,2.44467178,1816.6,1816.4,0.57664602]
[1680446182676,1.15470332,1816.5,1816.3,1.53123935]
[1680446182978,2.15470332,1816.5,1816.3,1.53123935]
[1680446183178,1.0,1816.4,1816.3,0.66547148]
[1680446183477,2.15470332,1816.4,1816.3,0.66547148]
[1680446183882,2.15470332,1816.4,1816.2,0.57664602]
[1680446184080,3.2078,1816.3,1816.2,0.57664602]
[1680446184380,4.36250332,1816.3,1816.2,0.57664602]
[1680446185774,4.36250332,1816.3,1816.1,1.44241389]
[1680446185974,1.0,1816.2,1816.1,0.86576787]
[1680446186182,1.0,1816.2,1816.1,1.44241851]
[1680446186978,1.0,1816.2,1816.1,0.86576787]
[1680446187480,1.0,1816.2,1816.1,0.57662634]
[1680446187884,1.57706765,1816.2,1816.1,0.57662634]
[1680446188280,1.0,1816.2,1816.1,0.57662634]
[1680446189375,4.36250332,1816.3,1816.1,0.57662634]
[1680446189776,4.36250332,1816.3,1816.0,1.44239421]
[1680446189981,3.78488486,1816.1,1816.0,0.57662634]
[1680446190175,0.57708486,1816.1,1816.0,1.44239421]
[1680446190686,0.57708486,1816.1,1816.0,0.86576787]
[1680446190883,0.57708486,1816.1,1816.0,1.44217229]
[1680446191188,0.57708486,1816.1,1816.0,1.44217847]
[1680446191885,0.57708486,1816.1,1816.0,0.5764106]
[1680446193385,0.57708486,1816.2,1816.0,0.86576787]
[1680446193589,0.57708486,1816.2,1816.1,0.57625081]
[1680446195883,0.57708486,1816.3,1816.1,1.86576787]
[1680446196082,0.57708486,1816.3,1816.2,4.07356787]
[1680446196281,0.57708486,1816.4,1816.2,4.07356787]
[1680446196581,0.57708486,1816.4,1816.3,0.57598875]
[1680446198491,0.57708486,1816.4,1816.3,0.66395833]
[1680446202788,0.57708486,1816.5,1816.3,0.95373745]
[1680446202991,0.57708486,1816.5,1816.4,3.78372025]
[1680446203991,0.57708486,1816.5,1816.4,0.57592025]
[1680446206487,0.57672064,1816.5,1816.4,0.57592025]
[1680446207897,1.0,1816.6,1816.4,0.57592025]
[1680446208501,2.15470332,1816.6,1816.3,1.5296577]
[1680446208791,0.57673663,1816.4,1816.3,1.5296577]
[1680446210399,0.57873663,1816.4,1816.3,0.66388983]
[1680446210600,0.002,1816.4,1816.3,0.08796958]
[1680446210804,1.002,1816.4,1816.3,0.08796958]
[1680446212397,1.002,1816.4,1816.2,0.57592025]
[1680446212596,0.57677828,1816.3,1816.2,0.57592025]
[1680446213287,0.57677828,1816.3,1816.2,0.66245874]
[1680446222605,0.57677828,1816.3,1816.2,2.52822661]
[1680446222905,0.002,1816.4,1816.2,1.95230636]
[1680446222906,0.57877828,1816.4,1816.2,1.95230636]
[1680446223110,0.57877828,1816.4,1816.3,3.78377722]
[1680446225206,0.57877828,1816.4,1816.3,4.64954509]
[1680446225707,0.57877828,1816.4,1816.3,3.78377722]
[1680446226012,0.57877828,1816.4,1816.3,4.64954509]
[1680446227502,0.57877828,1816.4,1816.3,4.07356787]
[1680446228304,0.57877828,1816.4,1816.3,4.16233373]
[1680446229811,0.002,1816.4,1816.3,4.45095]
[1680446230901,0.002,1816.4,1816.3,5.13362052]
[1680446231212,0.002,1816.4,1816.3,4.45095]
[1680446237811,0.002,1816.4,1816.3,5.418693]
[1680446238313,0.002,1816.4,1816.3,3.97923192]
[1680446239319,0.57677828,1816.7,1816.3,5.13047616]
[1680446239615,1.44180933,1816.7,1816.5,4.6468473]
[1680446239916,1.44180933,1816.7,1816.6,0.57561892]
[1680446240115,1.44180933,1816.7,1816.5,4.6468473]
[1680446240312,0.57677828,1816.6,1816.5,1.4390473]
[1680446240516,0.57677828,1816.6,1816.5,0.57561892]
[1680446240813,0.57677828,1816.6,1816.4,1.4390473]
[1680446240814,0.86503105,1816.6,1816.4,1.4390473]
[1680446241015,0.57667678,1816.5,1816.4,1.4390473]
[1680446241614,0.57667678,1816.5,1816.4,0.57561892]
[1680446241815,0.57667678,1816.5,1816.4,1.4390473]
[1680446243421,0.57667678,1816.5,1816.4,1.71208032]
[1680446243809,0.57667678,1816.5,1816.4,0.84865194]
[1680446244014,0.57667678,1816.5,1816.4,1.71208032]
[1680446244512,0.57667678,1816.5,1816.4,0.84865194]
[1680446244821,1.86503105,1816.5,1816.4,0.27303302]
[1680446245126,1.86503105,1816.5,1816.3,0.57561892]
[1680446245320,1.57679403,1816.4,1816.3,0.57561892]
[1680446245926,1.86503105,1816.4,1816.2,1.4390473]
[1680446246119,0.5767861,1816.3,1816.2,1.4390473]
[1680446246316,0.5767861,1816.3,1816.2,0.57561892]
[1680446246919,0.5767861,1816.3,1816.2,0.56914456]
[1680446250231,0.5767861,1816.3,1816.1,0.86342838]
[1680446252521,0.5767861,1816.4,1816.2,1.86342838]
[1680446252728,0.5767861,1816.4,1816.3,1.0]
[1680446252929,1.44181715,1816.4,1816.3,1.0]
[1680446253126,0.86503105,1816.4,1816.2,1.0]
[1680446253324,1.44167953,1816.4,1816.2,1.0]
[1680446253526,0.57664848,1816.4,1816.3,3.2078]
[1680446253830,0.57664848,1816.5,1816.3,4.07122838]
[1680446256634,0.57664848,1816.5,1816.3,0.86342838]
[1680446256834,0.57664848,1816.5,1816.2,1.86342838]
[1680446257133,0.57664848,1816.5,1816.2,0.86342838]
[1680446257327,0.57664848,1816.5,1816.3,0.86342838]
[1680446257533,0.57664848,1816.5,1816.2,0.86342838]
[1680446258328,0.57664848,1816.5,1816.3,0.16996497]
[1680446259136,1.44167953,1816.5,1816.3,0.16996497]
[1680446259835,0.57664848,1816.4,1816.3,0.16996497]
[1680446260234,1.44167953,1816.5,1816.3,0.16996497]
[1680446261133,1.44167953,1816.5,1816.3,1.03339335]
[1680446261336,0.57664848,1816.5,1816.3,1.03339335]
[1680446261536,0.57664848,1816.5,1816.3,4.24119335]
[1680446263240,1.44167953,1816.5,1816.3,4.24119335]
[1680446263432,0.57664848,1816.5,1816.3,4.24119335]
[1680446263738,1.44167953,1816.5,1816.3,4.24119335]
[1680446264536,0.57664848,1816.4,1816.3,4.24119335]
[1680446264739,0.57664848,1816.4,1816.3,1.03339335]
[1680446264933,0.57664848,1816.4,1816.3,0.16996497]
[1680446265136,0.57664848,1816.4,1816.3,1.03339335]
[1680446265337,0.57664848,1816.4,1816.3,0.16996497]
[1680446265843,0.57664848,1816.4,1816.3,1.03339335]
[1680446267141,0.57664848,1816.4,1816.3,0.16996497]
[1680446269341,0.57664848,1816.4,1816.3,1.03339335]
[1680446269544,0.57664848,1816.4,1816.3,0.16996497]
[1680446269736,0.57664848,1816.4,1816.3,1.03339335]
[1680446269937,0.57664848,1816.4,1816.3,0.16996497]
[1680446272944,1.57664848,1816.4,1816.3,0.16996497]
[1680446273137,2.44167953,1816.4,1816.3,0.16996497]
[1680446273540,2.44167953,1816.4,1816.3,0.08703367]
[1680446275344,1.86503105,1816.4,1816.3,0.08703367]
[1680446276045,0.86503105,1816.4,1816.3,0.08703367]
[1680446276244,1.4419163,1816.4,1816.3,0.08703367]
[1680446276744,0.86503105,1816.4,1816.3,0.08703367]
[1680446277343,1.44192699,1816.4,1816.3,0.08703367]
[1680446277843,0.86503105,1816.4,1816.3,0.08703367]
[1680446278053,1.86503105,1816.4,1816.3,0.08703367]
[1680446278340,1.86503105,1816.4,1816.2,0.86342838]
[1680446278549,1.86543156,1816.3,1816.1,0.86342838]
[1680446278749,0.57695485,1816.2,1816.1,0.86342838]
[1680446278936,1.57695485,1816.2,1816.1,0.86342838]
[1680446279641,0.57695485,1816.2,1816.1,0.86342838]
[1680446280842,0.57695485,1816.2,1816.0,0.86342838]
[1680446281042,0.57695485,1816.2,1816.1,0.86342838]
[1680446281441,0.57695485,1816.2,1816.0,0.86342838]
[1680446282160,0.57695485,1816.2,1816.1,0.86342838]
[1680446282849,0.57695485,1816.2,1816.0,0.86342838]
[1680446283349,0.57695485,1816.2,1816.1,0.86342838]
[1680446283649,0.57695485,1816.2,1816.0,0.86342838]
[1680446283841,0.57695485,1816.2,1816.1,0.86342838]
[1680446286354,1.44238641,1816.2,1816.1,0.86342838]
[1680446286953,1.44262429,1816.2,1816.1,0.86342838]
[1680446287450,0.57719273,1816.2,1816.1,0.86342838]
[1680446288154,1.44262429,1816.2,1816.1,0.86342838]
[1680446288646,1.44262429,1816.2,1816.1,0.95049426]
[1680446289448,0.86543156,1816.2,1816.1,0.08706588]
[1680446289752,0.57713107,1816.2,1816.1,0.95049426]
[1680446290147,1.44256263,1816.2,1816.1,0.95049426]
[1680446292451,0.57713161,1816.2,1816.1,0.95049426]
[1680446293152,0.57713161,1816.2,1816.1,4.15829426]
[1680446293552,0.57713161,1816.2,1816.1,3.29486588]
[1680446293749,0.57713161,1816.2,1816.1,4.15918254]
[1680446294050,0.57713161,1816.2,1816.1,4.15919149]
[1680446294550,1.44256317,1816.3,1816.1,4.44610373]
[1680446294759,1.44256317,1816.3,1816.2,0.86426947]
[1680446294948,0.57713161,1816.3,1816.2,1.86426947]
[1680446295853,0.57713161,1816.3,1816.2,2.15123785]
[1680446296055,0.86543156,1816.4,1816.2,2.15123785]
[1680446296056,1.44256317,1816.4,1816.2,2.15123785]
[1680446296257,1.44256317,1816.4,1816.3,4.07197117]
[1680446296752,0.86543156,1816.4,1816.3,4.07197117]
[1680446296953,1.44251073,1816.4,1816.3,4.07197117]
[1680446297459,0.86543156,1816.4,1816.3,4.07197117]
[1680446299054,0.86543156,1816.4,1816.3,3.2078]
[1680446299360,0.86543156,1816.4,1816.3,4.07197117]
[1680446299859,0.86543156,1816.4,1816.3,3.2078]
[1680446301960,2.15470332,1816.4,1816.1,0.95123705]
[1680446302261,1.4430471,1816.2,1816.1,0.86417117]
[1680446302460,2.4430471,1816.2,1816.1,0.86417117]
[1680446303557,2.5135556,1816.2,1816.1,0.86417117]
[1680446306266,1.5135556,1816.2,1816.1,0.86417117]
[1680446307371,2.09073978,1816.2,1816.1,0.86417117]
[1680446308173,1.5135556,1816.2,1816.1,0.86417117]
[1680446308561,2.0907324,1816.2,1816.1,0.86417117]
[1680446308873,1.5135556,1816.2,1816.1,0.86417117]
[1680446309070,2.09073241,1816.2,1816.1,0.86417117]
[1680446309267,2.09075266,1816.2,1816.1,0.86417117]
[1680446309471,1.2249244,1816.2,1816.1,0.86417117]
[1680446314582,1.5135556,1816.2,1816.1,0.86417117]
[1680446314772,2.0908186,1816.2,1816.1,0.86417117]
[1680446314976,1.15448184,1816.2,1816.1,0.89824284]
[1680446315179,1.15448184,1816.2,1816.1,0.03407167]
[1680446316279,1.15448184,1816.2,1816.1,4.39310952]
[1680446316674,1.15448184,1816.2,1816.1,3.24187167]
[1680446316874,1.15448184,1816.2,1816.1,4.39310952]
[1680446319885,1.15448184,1816.2,1816.1,1.18530952]
[1680446329288,2.0203101,1816.2,1816.1,1.18530952]
[1680446329490,1.15448184,1816.2,1816.1,1.18530952]
[1680446329890,2.0203101,1816.2,1816.1,1.18530952]
[1680446330090,1.15448184,1816.2,1816.1,1.18530952]
[1680446330687,2.0203101,1816.2,1816.1,1.18530952]
[1680446331787,1.4430471,1816.2,1816.1,1.18530952]
[1680446331990,2.02053657,1816.2,1816.1,1.18530952]
[1680446332189,1.4430471,1816.2,1816.1,1.18530952]
[1680446332691,1.4430471,1816.2,1816.1,0.03407167]
[1680446335203,1.4430471,1816.2,1816.1,1.18530952]
[1680446335597,1.4430471,1816.2,1816.1,0.03407167]
[1680446337498,1.48422498,1816.2,1816.0,1.15123785]
[1680446337702,0.57753187,1816.1,1816.0,1.83405933]
[1680446343410,0.57753187,1816.1,1816.0,0.68282148]
[1680446346511,0.57753187,1816.1,1816.0,1.83507686]
[1680446346810,0.57753187,1816.1,1816.0,1.15227001]
[1680446347013,0.57753187,1816.1,1816.0,0.68282148]
[1680446347414,0.57753187,1816.1,1815.9,1.43946108]
[1680446348614,0.04097675,1816.0,1815.9,1.43946108]
[1680446349607,0.04097675,1816.0,1815.9,0.68282148]
[1680446349810,0.04097675,1816.0,1815.8,0.68282148]
[1680446350015,0.04097675,1816.0,1815.9,0.68282148]
[1680446350314,0.04097675,1816.0,1815.8,0.68282148]
[1680446350514,0.04097675,1816.0,1815.9,0.68282148]
[1680446350815,0.04097675,1816.0,1815.8,0.68282148]
[1680446351016,0.04097675,1816.0,1815.9,0.68282148]
[1680446351416,0.04097675,1816.0,1815.8,0.68282148]
[1680446351618,0.04097675,1816.0,1815.9,0.68282148]
[1680446351813,0.04097675,1816.0,1815.8,0.68282148]
[1680446359123,0.04097675,1816.0,1815.9,1.44022015]
[1680446362218,0.61850862,1816.0,1815.9,1.44022015]
[1680446368832,0.61850862,1816.0,1815.9,0.68282148]
[1680446369134,0.61850862,1816.0,1815.9,2.12304163]
[1680446369339,0.61850862,1816.0,1815.8,2.12304163]
[1680446369632,0.61850862,1816.0,1815.9,0.68282148]
[1680446370540,0.61850862,1816.0,1815.8,2.12304163]
[1680446370843,0.61850862,1816.0,1815.9,1.8340213]
[1680446371732,0.61850862,1816.0,1815.9,1.15119982]
[1680446372038,4.11131868,1816.0,1815.9,1.15119982]
[1680446372235,4.39711464,1816.0,1815.9,0.86356954]
[1680446372641,5.26345623,1816.0,1815.9,0.86356954]
[1680446374539,5.26345623,1816.0,1815.9,0.57534428]
[1680446376740,5.55181796,1816.0,1815.8,0.57534428]
[1680446377040,1.8659169,1815.9,1815.8,0.57534428]
[1680446379442,2.05275348,1815.9,1815.8,0.57534428]
[1680446380751,2.05275348,1815.9,1815.7,0.57534428]
[1680446380951,4.78472566,1815.8,1815.7,0.57534428]
[1680446382554,4.2078,1815.8,1815.7,0.57534428]
[1680446383148,4.78472566,1815.8,1815.7,0.57534428]
[1680446383349,4.2078,1815.8,1815.7,0.57534428]
[1680446383650,3.2078,1815.8,1815.7,0.57534428]
[1680446384250,2.62967914,1815.9,1815.7,0.57534428]
[1680446384644,1.76376224,1815.9,1815.7,0.57534428]
[1680446386753,0.76376224,1815.9,1815.7,0.57534428]
[1680446404462,0.57692566,1815.8,1815.7,0.57534428]
[1680446404763,0.76376224,1815.9,1815.7,0.57534428]
[1680446405057,0.76376224,1815.9,1815.8,0.57534428]
[1680446410366,0.76376224,1815.9,1815.8,1.43891382]
[1680446410762,0.76376224,1815.9,1815.8,0.86356954]
[1680446413169,1.62967914,1815.9,1815.8,0.86356954]
[1680446413572,0.76376224,1815.9,1815.8,0.86356954]
[1680446414361,1.62967914,1815.9,1815.8,0.86356954]
[1680446414568,1.05275348,1815.9,1815.8,0.86356954]
[1680446416668,1.05275348,1815.9,1815.7,1.15119982]
[1680446416875,0.57766081,1815.8,1815.7,1.83412952]
[1680446417063,0.76094064,1815.8,1815.7,1.83412952]
[1680446419181,0.76094064,1815.8,1815.7,0.6829297]
[1680446419873,0.76094064,1815.8,1815.7,1.83566286]
[1680446420067,0.76094064,1815.8,1815.7,0.6829297]
[1680446420676,0.18327983,1815.8,1815.7,1.6829297]
[1680446420878,0.57966081,1816.0,1815.7,1.6829297]
[1680446421178,0.57966081,1816.0,1815.9,3.2078]
[1680446421379,0.57966081,1816.0,1815.9,5.04264746]
[1680446421876,0.57966081,1816.0,1815.9,4.35971776]
[1680446422373,0.57966081,1816.0,1815.9,5.04257703]
[1680446422575,0.002,1816.0,1815.9,5.04257703]
[1680446422775,0.57966081,1816.0,1815.9,5.04257703]
[1680446423174,0.002,1816.0,1815.9,4.35971776]
[1680446427578,0.002,1816.0,1815.9,3.2078]
[1680446429675,0.002,1816.0,1815.9,4.07135395]
[1680446430074,0.002,1816.0,1815.9,3.2078]
[1680446430472,0.002,1816.0,1815.9,4.07135352]
[1680446431079,0.57966081,1816.0,1815.9,0.86355352]
[1680446431779,0.002,1816.0,1815.9,0.86355352]
[1680446432082,0.57966081,1816.0,1815.9,0.86355352]
[1680446437582,1.8679169,1816.0,1815.9,0.57581588]
[1680446437789,1.98713915,1816.0,1815.9,0.57581588]
[1680446446579,1.12122225,1816.0,1815.9,0.57581588]
[1680446449787,2.27592557,1816.0,1815.8,1.43347011]
[1680446449987,4.07379851,1815.9,1815.8,1.43347011]
[1680446450188,4.19373594,1815.9,1815.8,1.43347011]
[1680446450388,4.19373594,1815.9,1815.8,0.86355352]
[1680446455389,4.19373594,1815.9,1815.7,0.86355352]
[1680446455691,0.57729564,1815.8,1815.7,0.86423053]
[1680446455989,1.69722504,1815.8,1815.7,0.86423053]
[1680446456192,0.69722504,1815.8,1815.7,0.86423053]
[1680446457091,0.69722504,1815.8,1815.6,1.15191776]
[1680446457491,0.69722504,1815.8,1815.7,0.86424533]
[1680446458085,0.98592791,1815.8,1815.7,0.86424533]
[1680446458587,1.56323921,1815.8,1815.7,0.86424533]
[1680446458890,0.98592791,1815.8,1815.7,0.86424533]
[1680446459592,0.98592791,1815.8,1815.6,0.86424533]
[1680446459794,3.78504187,1815.7,1815.6,0.86424533]
[1680446459998,3.2078,1815.7,1815.6,0.86424533]
[1680446460187,3.78504187,1815.7,1815.6,0.86424533]
[1680446467991,3.78504187,1815.7,1815.5,0.86424533]
[1680446468296,3.88073208,1815.7,1815.5,0.86424533]
[1680446469294,3.88073208,1815.7,1815.6,0.86424533]
[1680446469595,3.88073208,1815.7,1815.5,0.86424533]
[1680446471188,3.88073208,1815.7,1815.6,0.86424533]
[1680446471895,3.88073208,1815.7,1815.5,0.86424533]
[1680446472196,3.88073208,1815.7,1815.6,0.86424533]
[1680446472596,3.88073208,1815.7,1815.5,0.86424533]
[1680446472999,0.67293208,1815.7,1815.6,0.86424533]